[Event "German Bundesliga 2024-25"]
[Site "Germany"]
[Date "2024.09.29"]
[Round "2.3"]
[White "Hausrath, Daniel"]
[Black "L'Ami, Erwin"]
[Result "0-1"]
[Annotator "TA"]
[ECO "A46"]
[WhiteElo "2470"]
[BlackElo "2628"]
[PlyCount "74"]
[EventDate "2024.09.27"]
[EventType "team-tourn"]
[EventCountry "GER"]
[SourceTitle "playchess.com"]
[Source "ChessBase"]
[SourceQuality "1"]
[WhiteTeam "SV Muelheim Nord"]
[BlackTeam "SG Solingen"]
[TimeControl "40/5400+30:1800+30"]

{[%evp 9,74,42,46,-6,0,-12,2,7,14,-14,-16,-17,9,-13,3,-11,30,-25,19,0,24,0,8,0,0,-22,0,-89,-69,-122,-90,-108,-105,-139,-138,-109,-144,-146,-163,-194,-156,-227,-224,-211,-237,-242,-230,-312,-288,-307,-269,-291,-316,-306,-307,-440,-413,-483,-465,-663,-661,-693,-693,-679,-677,-573,-573]} 1. Nf3 {[%emt 0:00:04]} Nf6 {[%emt 0:00:10]} 2. g3 {[%emt 0:00:52]} e6 {[%emt 0:00:22]} 3. Bg2 {[%emt 0:00:31]} d5 {[%emt 0:00:10]} 4. d4 {[%emt 0:02:42]} b5 {[%emt 0:00:26]} 5. O-O {[%emt 0:12:14]} Be7 {[%emt 0:04:14]} {Wit zou kunnen overwegen.} 6. Bg5 {[%emt 0:07:26] A46: 1 d4 Pf6 2 Pf3 e6: Torre, London en Colle Systemen.} (6. Ne5 $14) 6... Nbd7 $11 {[%emt 0:04:14] OK} 7. Ne5 {[%emt 0:13:11]} Bb7 {[%emt 0:15:02] Stopt Nc6} 8. Qd3 {[%emt 0:02:56] De stelling is in evenwicht.} (8. Nxd7 $5 {vereenvoudigt} Nxd7 9. Bxe7 Qxe7 10. Nd2) 8... a6 {[%emt 0:04:55] OK} 9. Nd2 {[%emt 0:13:49] Onnauwkeurig} (9. Nxd7 $5 {vereenvoudigt} Nxd7 10. Bxe7 Qxe7 11. Nd2) 9... Nxe5 {[%emt 0:07:40]} 10. dxe5 {[%emt 0:00:13]} Nd7 {[%emt 0:00:16][%csl LRe5,LRg5] OK} 11. Bxe7 {[%emt 0:00:12] OK} Qxe7 {[%emt 0:00:06]} 12. f4 {[%emt 0:00:20] OK} O-O $146 {[%emt 0:01:29] Onnauwkeurig} ({Predecessor:} 12... c5 13. e4 d4 14. a4 c4 15. Qxd4 Qc5 16. c3 O-O 17. b4 cxb3 18. Nxb3 Qb6 19. axb5 axb5 20. Rxa8 Rxa8 {1-0 Padmini,R (2345)-Nikolova,A (2226) Motiva Online Blitz (Women) 2021 (7)}) {Wit kan het beste proberen.} 13. c3 {[%emt 0:05:45] Fout (0.6)} (13. a4 $1) 13... Nc5 {[%emt 0:06:13] Onnauwkeurig} 14. Qc2 {[%emt 0:06:03]} Rad8 {[%emt 0:01:52]} 15. Rad1 {[%emt 0:06:27]} Rd7 {[%emt 0:06:59] OK} 16. e3 {[%emt 0:05:01]} Rfd8 {[%emt 0:07:00]} 17. b4 {[%emt 0:08:07]} Na4 {[%emt 0:02:50] OK} 18. Nf3 {[%emt 0:00:56] Handhaaft evenwicht. Fout (0.9)} (18. Nb3 $11) 18... c5 $17 {[%emt 0:01:57][%cal Rc5b4] Zwart speel geconcentreerd verder. Beste} {Wit kan overwegen} 19. g4 {[%emt 0:04:11] Fout (0.5)} (19. a3 $15) 19... d4 {[%emt 0:06:49]} ({Weersta} 19... cxb4 20. cxb4 Rc7 (20... Qxb4 21. Nd4 $17) 21. Qd2) 20. exd4 {[%emt 0:01:10] OK} Bxf3 {[%emt 0:03:19] OK} ({Natuurlijk niet} 20... cxb4 21. Ng5 g6 22. Bxb7 Nxc3 23. Bf3 $11) 21. Bxf3 {[%emt 0:02:31] Onnauwkeurig} cxd4 {[%emt 0:00:46]} 22. Rxd4 {[%emt 0:00:28]} Rxd4 {[%emt 0:03:35]} 23. cxd4 {[%emt 0:00:02]} Qxb4 {[%emt 0:05:52] OK} 24. Rd1 {[%emt 0:01:40]} Nb2 {[%emt 0:01:03]} (24... Rxd4 $2 {vergaat.} 25. Qc8+ Qf8 26. Qxf8+ (26. Qxa6 Rxd1+ 27. Bxd1 Qc5+ 28. Kg2 Qd5+ 29. Bf3 Qd2+ 30. Kg3 g5 $15) 26... Kxf8 27. Rxd4 $18) 25. Rb1 {[%emt 0:02:39] Blijkt voordeliger. Fout (0.7)} (25. Qc7 Rf8 (25... Rxd4 $2 {te hebberig.} 26. Qc8+ Qf8 27. Qxf8+ Kxf8 28. Rxd4 $18) 26. Rf1 Qxd4+ 27. Kh1 Qxf4) (25. Rd2 $17 Nc4 (25... Rxd4 $2 {verliest.} 26. Qc8+ Qf8 27. Qxf8+ Kxf8 28. Rxd4 $18) 26. Rd1) 25... Qxd4+ $19 {[%emt 0:01:07] Beste (Gemakkelijk)} 26. Qf2 {[%emt 0:00:03] Beste} Nc4 {[%emt 0:02:56] OK} (26... Qxf4 27. Rxb2 Qxe5 28. Re2 $11) 27. Qxd4 {[%emt 0:01:37] OK} Rxd4 {[%emt 0:00:09]} 28. Rd1 {[%emt 0:00:50] Onnauwkeurig} Rxd1+ {[%emt 0:04:57] OK} (28... Rxf4 29. Rd8#) 29. Bxd1 {[%emt 0:00:02][%mdl 4096] Eindspel. KB-KN} Ne3 {[%emt 0:01:58] OK} 30. Bf3 {[%emt 0:01:26]} Nd5 {[%emt 0:00:49] OK} 31. f5 {[%emt 0:01:21]} Nb4 {[%emt 0:01:36]} 32. Bb7 {[%emt 0:00:31] Blijkt effectiever. Fout (1.3)} (32. a3 Nd3 33. Bb7) 32... a5 {[%emt 0:01:13] OK} ({Niet} 32... Nxa2 33. Bxa6 exf5 34. Bxb5 $17) 33. fxe6 {[%emt 0:00:27]} fxe6 {[%emt 0:00:41] Zwart is duidelijk aan het winnen.} 34. Bc8 {[%emt 0:00:41] Fout (2.0)} (34. Kf2 $142) 34... Kf7 {[%emt 0:00:10] Beste} (34... Nxa2 $2 {slaat de verkeerde figuur.} 35. Bxe6+ Kf8 36. Bxa2 $18) 35. Bd7 {[%emt 0:00:08]} Nxa2 {[%emt 0:00:13] [#] Hoopt vervolgens op ...Nc3.} 36. Bxb5 {[%emt 0:00:02]} Nc3 {[%emt 0:00:14]} 37. Bc4 {[%emt 0:00:45]} a4 {[%emt 0:00:09] Blunder waarde: Wit=0.40/Zwart=0.07 (foutloos) .  Fout:        	Wit=6      	---        Onnauwkeurig:    	Wit=3      	Zwart=2      OK:         	Wit=4      	Zwart=12     Beste:        	Wit=1      	Zwart=3} 0-1

[Event "German Bundesliga 2024-25"]
[Site "Germany"]
[Date "2024.10.06"]
[Round "2.4"]
[White "Wagner, Dennis"]
[Black "Kempinski, Robert"]
[Result "1/2-1/2"]
[Annotator "TA"]
[ECO "E12"]
[WhiteElo "2617"]
[BlackElo "2566"]
[PlyCount "66"]
[EventDate "2024.09.27"]
[EventType "team-tourn"]
[EventCountry "GER"]
[SourceTitle "playchess.com"]
[Source "ChessBase"]
[SourceQuality "1"]
[WhiteTeam "Viernheim"]
[BlackTeam "Hamburg"]
[TimeControl "40/5400+30:1800+30"]

{[%evp 11,66,4,32,16,35,27,28,30,30,29,65,65,82,46,77,87,142,154,165,89,68,74,107,110,121,115,112,112,109,118,131,112,120,112,117,122,144,136,128,126,112,128,140,108,85,100,123,0,0,0,0,0,0,0,0,0,0]} 1. d4 {[%emt 0:50:00]} Nf6 {[%emt 0:00:21]} 2. c4 {[%emt 0:00:09]} e6 {[%emt 0:00:19]} 3. Nf3 {[%emt 0:00:22]} b6 {[%emt 0:00:32]} 4. a3 {[%emt 0:00:36]} Bb7 {[%emt 0:00:40]} 5. Nc3 {[%emt 0:00:12]} d5 {[%emt 0:00:36]} 6. Qc2 {[%emt 0:00:23]} a6 {[%emt 0:08:56]} 7. cxd5 {[%emt 0:02:36]} exd5 {[%emt 0:00:03]} 8. g3 {[%emt 0:05:45]} Bd6 {[%emt 0:02:10]} 9. Bg2 {[%emt 0:02:09] Weiß hat minimalen Vorteil.} O-O {[%emt 0:02:08]} 10. Nh4 {[%emt 0:08:32]} c5 {[%emt 0:13:59]} 11. dxc5 bxc5 12. Bg5 {[%emt 0:21:16][%cal Oc3d5] Und jetzt Nxd5! wäre schön.} Be5 {[%emt 0:05:35]} 13. Rd1 {[%emt 0:05:04][%cal Oc3d5,Ba1d1,Bd1d5,Bd5d6][%mdl 32] Droht stark Nxd5!} Bxc3+ {[%emt 0:10:30]} ({Besser ist} 13... Nc6) 14. bxc3 $16 {[%emt 0:17:32]} (14. Qxc3 $6 Nbd7 $14) 14... Nbd7 {[%emt 0:09:48] [#]} 15. Bxd5 {[%emt 0:00:39]} Bxd5 {[%emt 0:01:23]} 16. Rxd5 {[%emt 0:00:04]} Qa5 {[%emt 0:02:45] [#]} 17. Rd6 {[%emt 0:00:47] Weiß steht aktiver.} c4 {[%emt 0:02:41]} 18. Nf5 {[%emt 0:03:32]} Rfe8 {[%emt 0:04:08][%cal Of6e4]} 19. O-O {[%emt 0:00:39][%cal Of5h6,Bh1f1,Bf1d1,Bd1d4][%mdl 32]} Ne4 {[%emt 0:06:42]} 20. Ne7+ {[%emt 0:01:38]} (20. Rxd7 $6 Qxf5 21. Rd4 Re5 $11) 20... Rxe7 {[%emt 0:00:09]} 21. Bxe7 {[%emt 0:00:02][%cal Bg5e7,Be7d6,Bd6f4][%mdl 32]} Nxd6 {[%emt 0:00:10]} 22. Bxd6 {[%emt 0:00:07]} Re8 {[%emt 0:00:12] Wehrt Qe4 ab} 23. Rd1 {[%emt 0:02:35]} Qh5 {[%emt 0:04:11]} 24. f3 {[%emt 0:02:38]} Qb5 {[%emt 0:02:02]} 25. Kf1 {[%emt 0:12:05]} Nb6 {[%emt 0:03:14]} 26. Rd4 {[%emt 0:07:24]} h6 {[%emt 0:07:54]} 27. Bf4 {[%emt 0:02:36]} Na4 {[%emt 0:04:35]} 28. Bd2 {[%emt 0:01:01]} a5 {[%emt 0:01:40]} 29. g4 {[%emt 0:01:03]} (29. Be1 $16) 29... Qb3 $1 $11 {[%emt 0:01:28] Die Stellung ist ausgeglichen.} 30. Qc1 {[%emt 0:00:07]} ({Vergiftet wäre} 30. Qxb3 $2 cxb3 31. Bc1 (31. Rxa4 $2 {verliert.} b2 $19) 31... b2 (31... Nxc3 32. e4 $15) 32. Bxb2 Nxb2 $19) 30... Qb8 $1 {[%emt 0:02:25]} 31. Bf4 {[%emt 0:00:15]} Qb3 {[%emt 0:00:02]} 32. Bd2 {[%emt 0:00:09]} Qb8 $1 {[%emt 0:00:02]} 33. Bf4 {[%emt 0:01:31]} Qb3 {[%emt 0:00:07] Gewichteter Fehlerwert: Weiß=0.13 (sehr präzise) /Schwarz=0.10 (sehr präzise) .  Fehler:       	Weiß=2     	Schwarz=1     Ungenau:       	Weiß=1     	Schwarz=3     OK:         	Weiß=12    	Schwarz=9     Bester:       	Weiß=1     	Schwarz=3     Stark:        	---       	Schwarz=3} 1/2-1/2

[Event "German Bundesliga 2024-25"]
[Site "Germany"]
[Date "2024.09.29"]
[Round "2.4"]
[White "Ragger, Markus"]
[Black "Dinstuhl, Volkmar"]
[Result "1-0"]
[Annotator "TA"]
[ECO "C88"]
[WhiteElo "2601"]
[BlackElo "2384"]
[PlyCount "87"]
[EventDate "2024.09.27"]
[EventType "team-tourn"]
[EventCountry "GER"]
[SourceTitle "playchess.com"]
[Source "ChessBase"]
[SourceQuality "1"]
[WhiteTeam "SG Solingen"]
[BlackTeam "SV Muelheim Nord"]
[TimeControl "40/5400+30:1800+30"]

{[%evp 20,87,33,31,29,30,41,29,37,36,52,25,73,39,50,49,42,56,39,34,53,36,173,170,188,184,173,179,174,156,155,83,61,54,47,47,47,47,56,53,53,45,42,37,39,37,57,50,58,60,63,59,67,57,106,81,83,78,92,92,106,0,177,181,179,171,167,175,710,399]} 1. e4 {[%emt 0:00:03]} e5 {[%emt 0:00:07]} 2. Nf3 {[%emt 0:00:04]} Nc6 {[%emt 0:00:03]} 3. Bb5 {[%emt 0:00:06]} a6 {[%emt 0:00:07]} 4. Ba4 {[%emt 0:00:01]} Nf6 {[%emt 0:00:15]} 5. O-O {[%emt 0:00:53]} Be7 {[%emt 0:00:05]} 6. Re1 {[%emt 0:00:58]} b5 {[%emt 0:00:17]} 7. Bb3 {[%emt 0:00:01]} d6 {[%emt 0:00:09]} 8. a4 {[%emt 0:00:59]} Rb8 {[%emt 0:10:30]} 9. axb5 {[%emt 0:07:16]} axb5 {[%emt 0:00:18]} 10. c3 {[%emt 0:00:19]} O-O {[%emt 0:18:31]} 11. h3 {[%emt 0:08:50]} Bb7 {[%emt 0:07:12]} 12. d3 {[%emt 0:17:06]} Re8 {[%emt 0:05:29]} 13. Nbd2 {[%emt 0:09:11]} (13. Nh4 {seems wilder.} Bc8 14. Nd2 Nxe4 15. Nxe4 Bxh4 16. Qh5) 13... Bf8 {[%emt 0:01:13] White has an edge.} 14. Nf1 {[%emt 0:02:06]} h6 {[%emt 0:11:32]} 15. Nh4 {[%emt 0:03:20]} d5 {[%emt 0:07:47]} (15... Bc8 $11) 16. Qf3 {[%emt 0:05:25]} (16. exd5 {is more complex.} Nxd5 17. Qf3 Qxh4 18. Bxd5 Nd8 19. d4) 16... Ra8 {[%emt 0:06:06]} 17. Rxa8 {[%emt 0:03:44]} Bxa8 {[%emt 0:00:08]} 18. Nf5 {[%emt 0:01:21]} (18. Bxd5 Nxd5 19. exd5 Qxh4 $11) 18... Na5 {[%emt 0:05:00]} 19. Ba2 {[%emt 0:00:25]} c5 {[%emt 0:01:30]} 20. exd5 {[%emt 0:12:23]} Kh8 {[%emt 0:18:54]} ({Black should try} 20... Bxd5 $14 21. Bxd5 Nxd5) 21. c4 $18 {[%emt 0:01:52]} e4 {[%emt 0:00:18]} 22. dxe4 {[%emt 0:01:13]} Nxc4 {[%emt 0:00:23]} 23. Bxc4 {[%emt 0:00:53]} bxc4 {[%emt 0:00:01]} 24. N1g3 {[%emt 0:00:27] Black must now prevent Bd2.} Bxd5 {[%emt 0:01:48][%cal Of6e4]} 25. Rd1 {[%emt 0:14:00] White is more active.} (25. Bxh6 $142 $1 Bb7 (25... gxh6 $2 26. Rd1 $18) 26. Bg5) 25... Nxe4 $16 {[%emt 0:00:09]} 26. Nxe4 {[%emt 0:04:04]} (26. Ne3 $5 Nc3 (26... Nxg3 $2 27. Rxd5 Qa5 28. fxg3 $18) 27. bxc3 (27. Nxd5 $2 Nxd1 28. Qxf7 c3 $19) 27... Bxf3 28. Rxd8 Rxd8 29. gxf3 $16) 26... Qa8 $1 {[%emt 0:00:10] [#]} (26... Rxe4 $2 {perishes.} 27. Qxe4 Bxe4 28. Rxd8 $18) 27. Ne3 $1 {[%emt 0:01:06]} Bxe4 {[%emt 0:02:48] This pair of bishops is nice.} 28. Qxf7 {[%emt 0:00:01]} Bd3 {[%emt 0:00:06]} 29. Bd2 {[%emt 0:00:16][%cal Od2c3]} Re7 {[%emt 0:01:15]} 30. Qf4 {[%emt 0:01:14][%cal Od2c3]} Re4 {[%emt 0:00:20]} 31. Qc7 {[%emt 0:01:06]} Qa4 {[%emt 0:01:21][%cal Oe4e3] Hoping for ...Rxe3!} 32. Re1 {[%emt 0:01:13]} Qe8 {[%emt 0:00:15]} 33. Bc3 {[%emt 0:01:01]} Kg8 {[%emt 0:00:16]} 34. Ra1 {[%emt 0:00:50]} Qf7 {[%emt 0:00:29] Prevents Nf5.} 35. Qg3 {[%emt 0:02:21]} Re8 {[%emt 0:00:29]} 36. Ra6 {[%emt 0:01:10][%cal Oe3g4] And now Ng4! would win.} Kh7 {[%emt 0:00:05]} (36... Re6 $1 $14 37. Ra8 Kh7) 37. Rc6 {[%emt 0:00:25]} Re6 {[%emt 0:00:13]} 38. Rc7 {[%emt 0:00:20]} Re7 {[%emt 0:01:34]} 39. Rxc5 {[%emt 0:00:47]} Ra7 {[%emt 0:00:30] [#]} 40. Rc6 {[%emt 0:00:31]} (40. Rc8 $1 $16) 40... Ra1+ $2 {[%emt 0:00:48]} (40... Qd7 $1 $11 41. Qf3 Ra1+ 42. Kh2 Bd6+ 43. g3 Qe7 44. Rxc4 (44. Nxc4 $2 {too greedy.} Be4 $19) 44... Bxc4 45. Nxc4 Bb4) 41. Kh2 $18 {[%emt 0:30:01]} Ra7 {[%emt 0:30:17] [#]} 42. Ng4 $1 {[%emt 0:00:00]} Be4 {[%emt 0:00:00]} 43. Rb6 {[%emt 0:00:00]} Be7 $2 {[%emt 0:00:00]} (43... Bb1 44. Qe3 Ra8) 44. Qe3 {[%emt 0:00:00] Weighted Error Value: White=0.12 (very precise) /Black=0.22 (precise) .  Loses game:     	---       	Black=1      Mistake:       	White=2     	Black=4      Inaccurate:     	White=3     	---        OK:         	White=17    	Black=7      Best:        	White=1     	Black=3      Strong:       	White=1     	Black=1} 1-0

[Event "German Bundesliga 2024-25"]
[Site "Germany"]
[Date "2024.10.06"]
[Round "2.4"]
[White "Gupta, Abhijeet"]
[Black "Dragnev, Valentin"]
[Result "1/2-1/2"]
[Annotator "TA"]
[ECO "E08"]
[WhiteElo "2573"]
[BlackElo "2562"]
[PlyCount "116"]
[EventDate "2024.09.27"]
[EventType "team-tourn"]
[EventCountry "GER"]
[SourceTitle "playchess.com"]
[Source "ChessBase"]
[SourceQuality "1"]
[WhiteTeam "Deizisau"]
[BlackTeam "Bayern Muenchen"]
[TimeControl "40/5400+30:1800+30"]

{[%evp 17,116,4,30,31,37,28,19,16,12,0,0,32,0,-9,0,-8,10,15,21,-11,-11,-25,-30,-37,-44,-43,-44,-44,-37,-41,-40,-34,-34,-41,-34,-34,-34,-34,-27,-34,-33,-34,-27,-26,-26,-26,-26,-26,-26,-33,-33,-33,0,-33,0,-14,0,0,0,0,0,0,0,0,0,0,0,0,0,0,0,0,0,-5,0,0,0,0,0,0,0,0,0,0,0,0,0,0,0,0,0,0,0,-6,0,0,0,0,0,0,0]} 1. d4 {[%emt 0:00:14]} Nf6 {[%emt 0:00:25]} 2. c4 {[%emt 0:00:20]} e6 {[%emt 0:00:06]} 3. Nf3 {[%emt 0:00:24]} d5 {[%emt 0:00:07]} 4. g3 {[%emt 0:00:34]} Bb4+ {[%emt 0:00:30]} 5. Bd2 {[%emt 0:00:13]} Be7 {[%emt 0:00:59]} 6. Bg2 {[%emt 0:00:06]} O-O {[%emt 0:00:11]} 7. O-O {[%emt 0:00:07]} c6 {[%emt 0:00:15]} 8. Qc2 {[%emt 0:00:37]} Nbd7 {[%emt 0:00:15]} 9. Bf4 {[%emt 0:01:12]} a5 {[%emt 0:01:28][%cal Ba7a5,Ba5a4][%mdl 32]} 10. Rd1 {[%emt 0:01:12]} a4 {[%emt 0:01:16]} 11. a3 {[%emt 0:00:57]} Ne4 {[%emt 0:00:29]} 12. Nc3 {[%emt 0:01:18]} Nxc3 {[%emt 0:01:00]} 13. bxc3 {[%emt 0:00:44]} b5 {[%emt 0:10:17]} 14. c5 {[%emt 0:02:36]} g5 {[%emt 0:00:13]} 15. Bd2 {[%emt 0:08:07]} f5 {[%emt 0:02:56]} 16. Qc1 {[%emt 0:01:01]} g4 {[%emt 0:04:16]} 17. Ne1 {[%emt 0:00:03]} e5 {[%emt 0:00:14][%cal Be6e5,Be5e4][%mdl 32]} 18. Nd3 {[%emt 0:00:05]} e4 {[%emt 0:02:03]} 19. Nb4 {[%emt 0:00:37]} Rf6 {[%emt 0:04:38]} 20. Bg5 {[%emt 0:03:36]} Rg6 {[%emt 0:00:46]} 21. Bxe7 {[%emt 0:12:21]} Qxe7 {[%emt 0:00:28]} 22. f3 {[%emt 0:02:08]} Nf8 {[%emt 0:07:17]} 23. fxe4 {[%emt 0:03:04]} fxe4 {[%emt 0:00:10]} 24. Rf1 {[%emt 0:00:32]} Bd7 {[%emt 0:01:42]} 25. Qe3 {[%emt 0:00:39]} Ne6 {[%emt 0:01:37]} 26. Rf2 {[%emt 0:01:58]} Rf8 {[%emt 0:00:54]} 27. Raf1 {[%emt 0:03:39]} Rgf6 {[%emt 0:01:35]} (27... Rxf2 {vereinfacht} 28. Rxf2 Kg7 29. Na6 Rf6) 28. h4 {[%emt 0:10:40]} Kg7 {[%emt 0:03:06]} 29. Nc2 {[%emt 0:01:54]} Rxf2 {[%emt 0:14:07]} 30. Rxf2 {[%emt 0:00:34]} Rxf2 {[%emt 0:00:13]} 31. Qxf2 {[%emt 0:00:26]} Qf6 {[%emt 0:03:19]} 32. e3 {[%emt 0:05:23]} Kf7 {[%emt 0:04:45]} 33. Qe1 {[%emt 0:03:39]} Ke7 {[%emt 0:03:14] Weiss ist schwach auf den weissen Feldern} 34. Bf1 {[%emt 0:06:47]} Nd8 {[%emt 0:02:59][%cal Be6d8,Bd8b7,Bb7a5,Ba5b3][%mdl 32]} 35. Be2 {[%emt 0:02:30][%cal Oc3c4]} Nb7 {[%emt 0:03:48]} (35... h5 {hält die Spannung aufrecht.} 36. Nb4 Qf5 37. Qf2 Ke6) 36. Qd1 {[%emt 0:00:29] Die Stellung ist ausgeglichen.} Na5 {[%emt 0:03:13]} 37. Ne1 {[%emt 0:05:19][%cal Bc2e1,Be1g2,Bg2f4][%mdl 32]} h5 {[%emt 0:04:57]} 38. Ng2 {[%emt 0:02:40]} Be8 {[%emt 0:02:21]} 39. Nf4 {[%emt 0:00:00][%cal Oe2b5] [#] Bxb5! wäre nun fies.} Bf7 {[%emt 0:04:32]} 40. Qb1 {[%emt 0:23:11]} Kf8 {[%emt 0:07:46]} 41. Kf2 {[%emt 0:17:21]} Nb3 {[%emt 0:10:25]} 42. Bd1 {[%emt 0:00:00]} Na5 {[%emt 0:00:13]} 43. Qb4 {[%emt 0:00:00]} Qd8 {[%emt 0:00:14]} ({Aber nicht} 43... Nc4 $2 44. Be2 $18) 44. Be2 {[%emt 0:00:00]} Qc7 {[%emt 0:00:35]} 45. Ke1 {[%emt 0:00:00]} (45. Bxb5 $2 cxb5 46. Qxb5 Nc4 $17) 45... Ke7 {[%emt 0:02:49][%cal Bf8e7,Be7d8,Bd8c8][%mdl 32]} 46. Kd2 {[%emt 0:00:00]} Kd8 {[%emt 0:01:17]} 47. Kc2 {[%emt 0:00:00][%cal Bd2c2,Bc2d1,Bd1e1,Be1f2,Bf2g2][%mdl 32]} Kc8 {[%emt 0:01:35]} 48. Qb1 {[%emt 0:00:00]} Be8 {[%emt 0:02:22]} 49. Kd1 {[%emt 0:00:00]} Nb3 {[%emt 0:01:21]} 50. Ke1 {[%emt 0:00:00]} Qa5 {[%emt 0:01:20]} 51. Qb2 {[%emt 0:00:00]} Qc7 {[%emt 0:00:09]} 52. Kf2 {[%emt 0:00:00]} Bf7 {[%emt 0:00:32]} 53. Kg2 {[%emt 0:00:00]} Qd8 {[%emt 0:01:53]} 54. Qb1 {[%emt 0:00:00]} Qf6 {[%emt 0:03:44]} 55. Qd1 {[%emt 0:01:55]} Qf5 {[%emt 0:00:39]} 56. Qe1 {[%emt 0:01:04]} Qd7 {[%emt 0:00:37]} 57. Qf1 {[%emt 0:00:58]} Nd2 {[%emt 0:00:30]} 58. Qf2 {[%emt 0:02:50][%cal Oe2b5] Droht Bxb5! und aus.} Nb3 {[%emt 0:00:05] Gewichteter Fehlerwert: Weiß=0.03 (makellos) /Schwarz=0.03 (makellos) .  Ungenau:       	Weiß=2     	Schwarz=3     OK:         	Weiß=19    	Schwarz=17    Bester:       	---       	Schwarz=1} (58... Nb1 59. Bxb5 cxb5 60. Qb2 $14) 1/2-1/2

[Event "German Bundesliga 2024-25"]
[Site "Germany"]
[Date "2024.10.06"]
[Round "2.4"]
[White "Krause, Benedict"]
[Black "Vogel, Roven"]
[Result "0-1"]
[Annotator "TA"]
[ECO "B90"]
[WhiteElo "2404"]
[BlackElo "2559"]
[PlyCount "80"]
[EventDate "2024.09.27"]
[EventType "team-tourn"]
[EventCountry "GER"]
[SourceTitle "playchess.com"]
[Source "ChessBase"]
[SourceQuality "1"]
[WhiteTeam "St. Pauli"]
[BlackTeam "TU Dresden"]
[TimeControl "40/5400+30:1800+30"]

{[%evp 10,80,28,12,17,9,31,12,23,17,16,11,29,-28,-37,-43,-46,-82,-85,-57,-33,-36,-17,-22,-27,-79,-14,-22,-12,-20,-20,-12,-9,-17,-13,-48,-43,-93,-43,-87,-85,-100,-29,-119,-58,-74,-65,-135,-128,-231,-216,-216,-235,-285,-284,-314,-283,-383,-404,-564,-437,-547,-519,-4586,-1619,-5114,-5114,-5114,-5114,-29977,-29978,-5102,-1918]} 1. e4 {[%emt 0:00:03]} c5 {[%emt 0:00:08]} 2. Nf3 {[%emt 0:00:52]} d6 {[%emt 0:00:30]} 3. d4 {[%emt 0:00:06]} cxd4 {[%emt 0:00:06]} 4. Nxd4 {[%emt 0:00:06]} Nf6 {[%emt 0:00:07]} 5. Nc3 {[%emt 0:00:06]} a6 {[%emt 0:00:07]} 6. a3 {[%emt 0:03:35]} Nc6 {[%emt 0:00:46]} 7. f4 {[%emt 0:17:47]} Bg4 {[%emt 0:10:05]} 8. Nf3 {[%emt 0:08:50]} e6 {[%emt 0:04:06] The position is equal.} 9. h3 {[%emt 0:04:15]} Bxf3 {[%emt 0:00:21]} 10. Qxf3 {[%emt 0:00:09]} d5 {[%emt 0:00:52]} 11. e5 {[%emt 0:17:24]} (11. exd5 $142 exd5 12. Bd2) 11... Nd7 $11 {[%emt 0:01:08]} 12. Bd3 {[%emt 0:01:23]} Qb6 {[%emt 0:03:33][%cal Og7g5]} 13. b4 {[%emt 0:15:58]} Qd4 {[%emt 0:06:57]} 14. Bd2 {[%emt 0:00:53] [#]} g5 $1 {[%emt 0:16:33] ...gxf4 would now be deadly.} 15. g3 {[%emt 0:04:00]} gxf4 {[%emt 0:02:45]} 16. gxf4 {[%emt 0:00:04]} Rc8 {[%emt 0:10:12] White must now prevent ...Bh6.} 17. Qf2 {[%emt 0:02:44]} (17. O-O-O Nxb4 18. axb4 Rxc3 19. Bxc3 Qxc3 $17) (17. Rf1 $11) 17... Bh6 {[%emt 0:01:16]} (17... Qxf2+ $17 18. Kxf2 Bh6) 18. Rf1 $1 {[%emt 0:07:35]} Rg8 $36 {[%emt 0:04:17][%mdl 2048] Black has the initiative.} 19. O-O-O $1 {[%emt 0:00:55]} Qxf2 {[%emt 0:03:22]} 20. Rxf2 {[%emt 0:00:04][%cal Oc3e2]} Rg3 {[%emt 0:00:41][%cal Oc6e5]} 21. Kb2 {[%emt 0:11:10]} Nd4 {[%emt 0:01:26]} 22. Ne2 {[%emt 0:01:00]} Nxe2 {[%emt 0:00:35]} (22... Rxh3 $2 23. Nxd4 Rh4 24. Rg1 $18 (24. Bxh7 Bxf4 25. Bxf4 Rxh7 $18)) 23. Rxe2 {[%emt 0:00:04] [#]} ({White should try} 23. Bxe2 $15 Nb6 (23... Rxh3 24. Bf1 $15) 24. Rdf1) 23... Nb6 {[%emt 0:06:50]} (23... Rxh3 24. Rg1 $15) ({Black should play} 23... Rf3 $1 $17 24. f5 Bxd2 (24... Rxh3 25. Bxh6 Rxh6 26. fxe6 $11) 25. Rdxd2 Ke7 (25... exf5 26. e6 $17) (25... Rxh3 26. fxe6 fxe6 27. Rh2 $17)) 24. f5 {[%emt 0:00:07]} Bxd2 {[%emt 0:00:14]} 25. Rdxd2 {[%emt 0:00:04] [#]} exf5 {[%emt 0:05:59] Black is more active.} (25... Rxh3 26. fxe6 fxe6 27. Rh2 Rxh2 28. Rxh2 $14) (25... Ke7 $1 $17 26. Re1 Nc4+ (26... Rxh3 27. Rg2 $17) 27. Bxc4 Rxc4) 26. e6 {[%emt 0:00:39]} (26. Rf2 $11) 26... Rc6 {[%emt 0:02:10]} (26... Rxh3 $6 27. exf7+ Kxf7 28. Rf2 $11) (26... f4 $17 27. Re5 f3 (27... Rxh3 28. exf7+ Kf8 29. Rf5 $11)) 27. exf7+ $1 $15 {[%emt 0:01:08]} Kxf7 {[%emt 0:00:02]} 28. Re5 {[%emt 0:01:45]} (28. Rf2 $1 $15) 28... Rf6 {[%emt 0:07:03]} (28... Rxh3 29. Rxf5+ Rf6 30. Re5 $11) 29. Rde2 {[%emt 0:00:09]} (29. Rf2 $17) 29... Nc4+ $19 {[%emt 0:00:13]} (29... Rxh3 30. Re7+ (30. Bxf5 $2 Nc4+ 31. Kb1 Rh1+ 32. Ka2 Nxe5 $19) 30... Kf8 31. Rxb7 $11) 30. Bxc4 {[%emt 0:00:06]} dxc4 {[%emt 0:00:03][%mdl 4096] Endgame. KRR-KRR} 31. Re7+ {[%emt 0:00:05]} Kg6 {[%emt 0:00:05]} 32. Rxb7 {[%emt 0:00:16]} f4 $1 {[%emt 0:00:05][%cal Of4f3]} (32... Rxh3 33. Rg2+ Kh6 34. Rgg7 $11) 33. Ree7 {[%emt 0:00:50]} h6 {[%emt 0:01:46][%cal Of4f3]} (33... Rxh3 34. Rg7+ Kf5 35. Rbc7 $19) 34. a4 {[%emt 0:00:32]} f3 {[%emt 0:01:10]} (34... Rxh3 35. b5 $11) 35. Rg7+ {[%emt 0:02:08]} Kh5 {[%emt 0:00:09] Threatens to win with ...Rxg7.} 36. Rbf7 {[%emt 0:01:02]} (36. Rxg3 $142 f2 37. Rc7) 36... Rgg6 {[%emt 0:01:02]} (36... Rxh3 $2 {loses.} 37. Rxf6 Rh1 38. Rxf3 $18 (38. Rxa6 f2 $18)) 37. Rxf6 {[%emt 0:00:05]} Rxf6 {[%emt 0:00:08]} 38. Rg1 {[%emt 0:00:03]} f2 {[%emt 0:00:10]} 39. Rf1 {[%emt 0:00:03]} Kh4 {[%emt 0:00:07]} 40. Kc3 {[%emt 0:00:08]} Kxh3 {[%emt 0:00:20] Weighted Error Value: White=0.79/Black=0.12 (very precise) .  Mistake:       	White=7     	Black=4      Inaccurate:     	White=6     	---        OK:         	White=3     	Black=8      Best:        	White=1     	Black=5      Strong:       	White=3     	Black=1} 0-1